[Event "20th Delhi GM Open 2023"]
[Site "New Delhi"]
[Date "2023.03.26"]
[Round "6.8"]
[White "Patil Harshal"]
[Black "Kobalia, Mikhail"]
[Result "0-1"]
[ECO "A89"]
[WhiteElo "2023"]
[BlackElo "2577"]
[Annotator "TA"]
[PlyCount "70"]
[EventDate "2023.03.23"]
[EventType "swiss"]
[EventCountry "IND"]
[SourceTitle "playchess.com"]
[Source "ChessBase"]
[SourceQuality "1"]
[TimeControl "5400+30"]

{[%evp 19,70,42,39,32,58,46,39,33,62,0,49,43,44,40,39,0,62,46,95,-36,-6,-21,-27,-47,-67,-99,-77,-89,-104,-102,-93,-131,-118,-136,-128,-187,-170,-422,-418,-1137,-1138,-29989,-2997,-2041,-1728,-29992,-29993,-29993,-29994,-29994,-29995,-29996,-29997]} 1. d4 {[%emt 0:00:04]} f5 {[%emt 0:00:09]} 2. c4 {[%emt 0:00:26]} Nf6 {[%emt 0:00:05]} 3. Nc3 {[%emt 0:00:16]} d6 {[%emt 0:00:06]} 4. Nf3 {[%emt 0:00:11]} g6 {[%emt 0:00:05]} 5. g3 {[%emt 0:00:12]} Bg7 {[%emt 0:00:04]} 6. Bg2 {[%emt 0:00:10]} O-O {[%emt 0:00:05]} 7. O-O {[%emt 0:00:07]} Nc6 {[%emt 0:00:06]} 8. d5 {[%emt 0:00:16]} Ne5 {[%emt 0:00:06]} 9. Nxe5 {[%emt 0:00:09]} dxe5 {[%emt 0:00:04]} 10. e4 {[%emt 0:00:18]} f4 {[%emt 0:00:19]} 11. c5 {[%emt 0:00:19] A89: Dutch Defence: Leningrad System: 5 Nf3 0-0 6 0-0 d6 7 Nc3 Nc6.} g5 {[%emt 0:00:21]} 12. b4 {[%emt 0:00:27]} Qe8 {[%emt 0:05:54]} 13. a4 {[%emt 0:01:10] White is slightly better.} a6 {[%emt 0:02:55] [#] Prevents Nb5} 14. Bb2 $146 {[%emt 0:04:44]} (14. Rb1 $14) ({Predecessor:} 14. b5 Qf7 15. c6 bxc6 16. bxc6 Ng4 17. h3 f3 18. hxg4 Bxg4 19. Bh1 Qh5 20. Qd2 {0-1 Wisskirchen,A (2266)-Noetzel,F (2274) Oberliga NRW 0304 2003 (2.4)}) 14... g4 {[%emt 0:04:25]} (14... Qg6 $11 {feels stronger.}) 15. Re1 $1 $14 {[%emt 0:03:18]} f3 {[%emt 0:01:43]} 16. Bf1 {[%emt 0:00:47]} h5 $1 {[%emt 0:00:06][%cal Bh7h5,Bh5h4][%mdl 32]} 17. Qb3 {[%emt 0:05:26]} Kh8 {[%emt 0:07:26]} (17... h4 $11) 18. Nd1 {[%emt 0:10:19]} Nh7 {[%emt 0:01:04][%cal Oh5h4]} 19. Ra2 {[%emt 0:06:46] [#]} (19. c6 $16) 19... h4 $1 $15 {[%emt 0:01:05]} 20. Bc3 {[%emt 0:04:21]} Qh5 {[%emt 0:02:04]} 21. Rc2 Ng5 {[%emt 0:05:55] Threatens to win with ...hxg3.} 22. Kh1 {[%emt 0:18:21]} Bd7 {[%emt 0:05:03]} 23. b5 {[%emt 0:02:45]} axb5 {[%emt 0:01:56]} 24. axb5 {[%emt 0:00:04] [#]} Qh7 $1 {[%emt 0:16:52] Hoping for ...hxg3.} 25. Bd3 {[%emt 0:08:11]} hxg3 {[%emt 0:07:07]} 26. fxg3 {[%emt 0:00:02] [#]} f2 $1 {[%emt 0:00:23] Some like it hot. Black is more active.} 27. Nxf2 {[%emt 0:15:38]} (27. Rxf2 $17 {was worth a try.} Rxf2 {[%mdl 64] Remove Defender} 28. Nxf2) 27... Nf3 $1 $40 {[%emt 0:00:46][%csl Gf3,LRe1,LRh2][%cal Rh7h2][%mdl 128] Black attacks with force.} 28. h4 {[%emt 0:00:31]} (28. Nd1 Nxe1 29. Bxe1) 28... Nxh4 {[%emt 0:18:08]} (28... gxh3 29. Rf1 $19) 29. gxh4 {[%emt 0:00:58]} (29. Nxg4 $142 Nf3+ {[%mdl 64] Discovered Attack} 30. Nh2 Nxe1 31. Bxe1) 29... g3 {[%emt 0:00:07]} ({And not} 29... Qxh4+ 30. Kg2 (30. Nh3 $2 g3 $19) 30... Rf3 31. Rh1 $19) 30. Nd1 {[%emt 0:06:51]} Qxh4+ {[%emt 0:00:29]} (30... Rf4 $142 31. Bxe5 Rxh4+ 32. Kg2 Bxe5 33. Bf1 Rf8 34. Qf3 Rh2+ {[%mdl 64] Skewer, Deflection} 35. Kg1 Rxf3 36. Bg2 Bd4+ 37. Nf2 Rh1+ {[%mdl 64] Skewer, Decoy} 38. Bxh1 Qh2+ {[%mdl 64] Pin} 39. Kf1 Rxf2+ 40. Rxf2 Qxf2#) 31. Kg1 {[%emt 0:00:13]} Rf6 {[%emt 0:00:27] ( -> ...Rh6)} 32. Bxe5 {[%emt 0:06:02]} Rh6 {[%emt 0:05:18][%csl Gh6][%cal Rh4h1] Black mates.} 33. Bxg7+ {[%emt 0:01:01]} Kxg7 {[%emt 0:00:04][%csl Gh6][%cal Rh4h1]} 34. Qb2+ {[%emt 0:00:30]} Kg8 {[%emt 0:00:07][%csl Gh6][%cal Rh4h1]} 35. Nf2 {[%emt 0:02:38]} gxf2+ {[%emt 0:00:22] Artfully played by Kobalia.   Weighted Error Value: White=0.80/Black=0.21 (precise)} 0-1

[Event "20th Delhi GM Open 2023"]
[Site "New Delhi"]
[Date "2023.03.26"]
[Round "6.9"]
[White "Stany, G.A."]
[Black "Goutham Krishna H"]
[Result "0-1"]
[ECO "B53"]
[WhiteElo "2494"]
[BlackElo "1990"]
[Annotator "TA"]
[PlyCount "78"]
[EventDate "2023.03.23"]
[EventType "swiss"]
[EventCountry "IND"]
[SourceTitle "playchess.com"]
[Source "ChessBase"]
[SourceQuality "1"]
[TimeControl "5400+30"]

{[%evp 9,78,31,32,25,22,18,20,28,20,22,18,13,28,29,61,45,43,37,79,83,67,54,56,54,81,43,41,47,44,25,29,34,43,37,33,0,58,69,49,0,0,-8,-6,-122,-9,-26,-33,-39,10,20,18,-10,-20,-6,0,-159,-127,-125,-8,-49,-51,-43,0,-187,-180,-311,-338,-29988,-29989,-29989,-29990]} 1. e4 {[%emt 0:00:04]} c5 {[%emt 0:00:03]} 2. Nf3 {[%emt 0:00:04]} d6 {[%emt 0:00:02]} 3. d4 {[%emt 0:00:10]} cxd4 {[%emt 0:00:05]} 4. Qxd4 {[%emt 0:00:04]} a6 {[%emt 0:00:29]} 5. Be2 {[%emt 0:00:15]} Nf6 {[%emt 0:00:06]} 6. O-O {[%emt 0:01:56] B53: Sicilian: 2...d6: Lines with Qxd4.} Nc6 {[%emt 0:05:48]} 7. Qe3 {[%emt 0:00:09]} g6 {[%emt 0:01:38]} 8. h3 {[%emt 0:04:22] The position is equal.} Bg7 {[%emt 0:00:32]} 9. c4 {[%emt 0:05:17]} O-O {[%emt 0:01:38]} 10. Nc3 {[%emt 0:00:09]} Rb8 {[%emt 0:06:16]} 11. Rb1 {[%emt 0:01:32] is the legacy move (11.Rd1).} Be6 {[%emt 0:03:30][%cal Ob7b5]} 12. Rd1 {[%emt 0:07:07]} Nd7 {[%emt 0:01:32]} 13. Ng5 {[%emt 0:18:59] [#]} h6 $146 {[%emt 0:02:47]} ({Predecessor:} 13... a5 14. a3 Nc5 15. b4 axb4 16. axb4 Nd7 17. c5 dxc5 18. bxc5 Qc8 19. Nxe6 fxe6 {½-½ Qin,K (2465)-Hou,Y (2549) CHN-chT Torch Real Estate Cup 2008 (9)}) 14. Nxe6 {[%emt 0:07:40]} fxe6 15. Bg4 {[%emt 0:12:48]} e5 {[%emt 0:14:31]} 16. Ne2 {[%emt 0:17:43]} Rf6 {[%emt 0:16:11]} 17. h4 {[%emt 0:00:00]} h5 {[%emt 0:03:29]} 18. Bh3 {[%emt 0:00:00]} a5 $1 {[%emt 0:01:19][%cal Ba6a5,Ba5a4][%mdl 32]} 19. b3 {[%emt 0:00:00][%cal Bb2b3,Bb3b4][%mdl 32]} Nc5 $1 {[%emt 0:06:03]} 20. a3 {[%emt 0:00:00]} a4 $1 {[%emt 0:01:21]} 21. b4 {[%emt 0:02:20]} Nb3 {[%emt 0:00:07]} 22. Bb2 {[%emt 0:02:31]} Ra8 {[%emt 0:03:30]} ({Black should play} 22... Kh7 $11) 23. c5 {[%emt 0:07:58]} Kh7 {[%emt 0:00:41]} 24. Bc3 {[%emt 0:03:47]} (24. f4 $14 Bh6 25. Rd5) 24... Qc7 $11 {[%emt 0:04:59]} 25. cxd6 {[%emt 0:01:07]} Rxd6 {[%emt 0:00:20]} 26. Rd5 {[%emt 0:06:15]} (26. Rxd6 $11 {remains equal.} Qxd6 27. b5) 26... Rad8 {[%emt 0:00:42]} (26... Ncd4 $17 27. Ng3 Nc2) 27. Rbd1 {[%emt 0:00:05]} (27. g4 $5 {[%cal Rg4h5]}) 27... Ncd4 {[%emt 0:01:17][%mdl 64] [#] X-Ray Attack} 28. Bxd4 {[%emt 0:00:27]} exd4 {[%emt 0:01:19]} (28... Nxd4 $15 {feels stronger.} 29. Nxd4 exd4) 29. Qd3 $1 {[%emt 0:01:01][%cal Od5h5]} e5 {[%emt 0:01:28]} 30. Rxd6 {[%emt 0:00:39]} Rxd6 {[%emt 0:01:38]} 31. f4 {[%emt 0:00:16]} Bh6 {[%emt 0:01:06]} 32. Rf1 $2 {[%emt 0:00:58]} (32. fxe5 $11 Be3+ 33. Kh1) 32... exf4 $17 {[%emt 0:03:12][%cal Of4f3] ...f3! is the strong threat.} 33. e5 {[%emt 0:00:10]} Rd8 {[%emt 0:00:06]} (33... Rd5 $17 34. Nxf4 Bxf4 35. Rxf4 Rxe5) 34. Nxf4 $11 {[%emt 0:00:58]} Bxf4 {[%emt 0:00:06]} (34... Qxe5 {leads to mate.} 35. Qxg6+ Kh8 36. Qxh6+ Kg8 37. Be6+) 35. Rxf4 {[%emt 0:00:03] Black must now prevent Rf6.} Qxe5 {[%emt 0:00:08]} 36. Rf7+ {[%emt 0:00:30]} (36. Re4 $1 $11 {and White has nothing to worry.} Qg7 37. Re6) 36... Kh6 $19 {[%emt 0:00:06] ...Nc1 would be deadly.} 37. Rxb7 {[%emt 0:00:51] [#]} (37. Qf3 $142) 37... Nc1 $1 {[%emt 0:06:34]} 38. Qf3 {[%emt 0:00:38]} (38. Qd2+ $19 Qe3+ 39. Qxe3+ dxe3 40. g4 (40. Re7 $2 Rd1+ 41. Kh2 e2 $19) 40... hxg4 41. Bxg4) 38... Qe1+ {[%emt 0:00:46]} 39. Kh2 {[%emt 0:00:05]} Ne2 {[%emt 0:00:24] Weighted Error Value: White=0.38/Black=0.18 (very precise)} (39... Qxh4 $2 40. g3 Qg5 41. Qf7 $18) 0-1

[Event "20th Delhi GM Open 2023"]
[Site "New Delhi"]
[Date "2023.03.27"]
[Round "7.1"]
[White "Aravindh, Chithambaram VR."]
[Black "Neelash Saha"]
[Result "1/2-1/2"]
[ECO "E05"]
[WhiteElo "2607"]
[BlackElo "2444"]
[Annotator "TA"]
[PlyCount "60"]
[EventDate "2023.03.23"]
[EventType "swiss"]
[EventCountry "IND"]
[SourceTitle "playchess.com"]
[Source "ChessBase"]
[SourceQuality "1"]
[TimeControl "5400+30"]

{[%evp 13,60,8,14,16,12,8,5,18,4,4,8,26,14,19,15,0,0,13,0,0,0,0,0,0,0,0,23,37,27,0,0,-45,0,0,0,0,0,0,0,0,0,0,0,0,0,0,0,0,0]} 1. g3 {[%emt 0:00:07]} d5 {[%emt 0:00:55]} 2. Nf3 {[%emt 0:00:10]} Nf6 {[%emt 0:02:42]} 3. Bg2 {[%emt 0:00:09]} e6 {[%emt 0:00:04]} 4. O-O {[%emt 0:00:26]} Be7 {[%emt 0:00:02]} 5. c4 {[%emt 0:00:18]} O-O {[%emt 0:00:05]} 6. d4 {[%emt 0:00:12]} dxc4 {[%emt 0:00:37]} 7. Qc2 {[%emt 0:00:10]} b5 {[%emt 0:00:27]} 8. a4 {[%emt 0:00:12] E05: Open Catalan: 5 Nf3 Be7.} b4 {[%emt 0:00:04] 8...Bb7 injects fresh life into this line.} 9. Nfd2 {[%emt 0:00:09]} c6 {[%emt 0:00:05]} 10. Nxc4 {[%emt 0:00:06]} Qxd4 {[%emt 0:00:03]} 11. Rd1 {[%emt 0:00:13]} Qc5 {[%emt 0:00:04]} 12. Be3 {[%emt 0:00:08]} Qh5 {[%emt 0:00:05]} 13. Nbd2 {[%emt 0:00:08]} Ng4 {[%emt 0:00:59]} 14. Nf1 {[%emt 0:00:25]} Nxe3 {[%emt 0:05:08]} 15. Nfxe3 {[%emt 0:00:10]} a5 {[%emt 0:00:35]} 16. Rac1 {[%emt 0:00:49]} Ra7 {[%emt 0:01:15] [#]} 17. Qe4 $146 {[%emt 0:36:24]} ({Predecessor:} 17. b3 Ba6 18. Qe4 c5 19. Qc2 Bd8 20. Bf3 Qg6 21. Be4 Qh5 22. Kg2 Nd7 23. f4 {1-0 Palladino,M (2219)-Sileika,A (2119) W-ch WS/M/773 email 2020}) 17... Qg6 {[%emt 0:06:47]} 18. Qf4 {[%emt 0:05:46]} Ba6 {[%emt 0:00:05]} 19. h4 {[%emt 0:00:12]} c5 {[%emt 0:08:39]} 20. Rd2 {[%emt 0:02:37] Black is weak on the light squares} Qf6 {[%emt 0:05:55]} 21. Qe4 {[%emt 0:12:20]} (21. Qxf6 {simplifies} Bxf6 22. Nxa5 Rd8 23. Rxd8+ Bxd8 24. Nb3) 21... Bb7 {[%emt 0:01:09]} 22. Ng4 {[%emt 0:13:01]} Bxe4 {[%emt 0:05:04] A strong pair of Bishops.} (22... Qxb2 $5 23. Nxb2 (23. Rxb2 Bxe4 24. Bxe4 f5 $15) 23... Bxe4 24. Bxe4 f5 $11) 23. Nxf6+ {[%emt 0:00:05] The position is equal.} gxf6 {[%emt 0:00:08]} 24. Bxe4 {[%emt 0:00:05]} Rd8 {[%emt 0:01:04]} 25. Rxd8+ {[%emt 0:05:58]} Bxd8 {[%emt 0:00:05]} 26. Nd6 {[%emt 0:00:05]} Rd7 {[%emt 0:00:56]} 27. Nb7 {[%emt 0:00:09]} Bb6 {[%emt 0:00:08]} 28. Nxc5 {[%emt 0:00:31]} Rc7 {[%emt 0:00:04]} 29. Nd3 {[%emt 0:00:11]} Rxc1+ {[%emt 0:00:09]} 30. Nxc1 {[%emt 0:00:03]} Nd7 {[%emt 0:00:33] An uneventful encounter.   Weighted Error Value: White=0.06 (flawless) /Black=0.03 (flawless)} 1/2-1/2

[Event "20th Delhi GM Open 2023"]
[Site "New Delhi"]
[Date "2023.03.27"]
[Round "7.2"]
[White "Murzin, Volodar"]
[Black "Viani Antonio Dcunha"]
[Result "1-0"]
[ECO "B76"]
[WhiteElo "2554"]
[BlackElo "2386"]
[Annotator "TA"]
[PlyCount "131"]
[EventDate "2023.03.23"]
[EventType "swiss"]
[EventCountry "IND"]
[SourceTitle "playchess.com"]
[Source "ChessBase"]
[SourceQuality "1"]
[TimeControl "5400+30"]

{[%evp 26,131,35,28,34,30,50,25,44,-8,35,36,40,32,39,9,12,0,3,6,4,0,0,0,0,0,0,0,0,0,6,17,10,-3,-3,-3,-3,-6,0,0,-8,-11,0,0,8,0,0,0,9,8,9,8,8,8,8,9,13,12,8,11,58,61,160,159,131,145,188,171,202,203,521,500,579,564,599,571,530,484,1191,1064,6427,6422,5513,5487,3992,2720,29979,29980,29980,29981,29981,29982,29982,29983,29982,29983,29986,29987,29987,29988,29988,29989,29989,29990,29990,29991,29993,29994]} 1. e4 {[%emt 0:00:03]} c5 {[%emt 0:00:25]} 2. Nf3 {[%emt 0:02:21]} d6 {[%emt 0:00:18]} 3. d4 {[%emt 0:00:13]} cxd4 {[%emt 0:00:12]} 4. Nxd4 {[%emt 0:00:03]} Nf6 {[%emt 0:00:12]} 5. Nc3 {[%emt 0:00:07]} g6 {[%emt 0:00:17]} 6. f3 {[%emt 0:02:11]} Bg7 {[%emt 0:00:17]} 7. Be3 {[%emt 0:00:07]} Nc6 {[%emt 0:00:40]} 8. Qd2 {[%emt 0:00:36]} O-O {[%emt 0:00:33]} 9. O-O-O {[%emt 0:00:07]} d5 {[%emt 0:01:15]} 10. exd5 {[%emt 0:00:52]} Nxd5 {[%emt 0:00:10]} 11. Nxc6 {[%emt 0:00:05]} bxc6 {[%emt 0:00:07]} 12. Bd4 {[%emt 0:00:02]} Bxd4 {[%emt 0:02:25]} 13. Qxd4 {[%emt 0:00:05]} Qb6 {[%emt 0:00:08]} 14. Na4 {[%emt 0:03:07]} Qa5 {[%emt 0:00:52][%cal Oe7e5] Hoping for ...e5! B76: Sicilian Dragon: Yugoslav Attack, 9 g4 and 9 0-0-0.} 15. b3 {[%emt 0:00:44]} Qc7 {[%emt 0:02:25]} 16. Re1 {[%emt 0:24:29] [#]} Qd6 $146 {[%emt 0:01:29] White has an edge.} ({Predecessor:} 16... Nb6 17. Nc3 a5 18. Qe5 Qxe5 19. Rxe5 Be6 20. a4 Rfc8 21. Ne2 Kf8 22. Nf4 Bd7 {½-½ Leko,P (2762)-Radjabov,T (2757) Nanjing Pearl Spring 2nd 2009 (2)}) 17. Kb2 {[%emt 0:06:19]} (17. Qe5 $14) 17... Rd8 {[%emt 0:27:01][%cal Od5b6]} (17... Nb6 $5 {[%cal Rd6d4]} 18. Qxd6 Nxa4+ 19. Ka3 exd6 20. Kxa4 Be6 $11) 18. Qe5 {[%emt 0:06:04]} Nb6 {[%emt 0:07:01] ...Nxa4+ would be deadly.} 19. Nc3 {[%emt 0:22:00]} (19. Qxe7 $2 {too greedy.} Nxa4+ 20. bxa4 Qd4+ 21. Kb1 Bf5 $19) 19... Be6 {[%emt 0:10:01]} 20. Qxd6 {[%emt 0:13:17]} (20. h4 {looks sharper.} a5 21. h5 Qxe5 22. Rxe5 a4 23. Re4) 20... exd6 {[%emt 0:00:17]} 21. Ba6 {[%emt 0:00:14]} Rab8 {[%emt 0:04:04] Wards off Bb7} 22. Ne4 {[%emt 0:00:29]} Kg7 {[%emt 0:16:30]} 23. Rd1 {[%emt 0:03:26]} d5 {[%emt 0:06:30]} 24. Nc5 {[%emt 0:00:42]} Nd7 {[%emt 0:00:15]} 25. Na4 {[%emt 0:04:56]} h5 {[%emt 0:04:06]} 26. Ka3 {[%emt 0:01:03]} Kf6 {[%emt 0:00:59]} 27. Rhe1 {[%emt 0:00:51]} g5 {[%emt 0:00:46]} 28. Re3 {[%emt 0:03:07]} c5 {[%emt 0:05:36]} 29. Rc3 {[%emt 0:01:07] [#]} c4 {[%emt 0:01:59]} 30. bxc4 {[%emt 0:00:21]} dxc4 {[%emt 0:00:10]} 31. Re3 {[%emt 0:01:26]} Ne5 {[%emt 0:00:43]} 32. Rxd8 {[%emt 0:01:46]} Rxd8 {[%emt 0:00:02]} 33. Nc3 {[%emt 0:00:03]} Bf5 {[%emt 0:01:52]} 34. Re2 {[%emt 0:00:52]} Nc6 {[%emt 0:02:01]} 35. Kb2 {[%emt 0:03:04]} Rb8+ {[%emt 0:02:50]} 36. Kc1 {[%emt 0:00:23]} Nd4 {[%emt 0:00:23]} 37. Nd5+ {[%emt 0:00:16]} Kg7 {[%emt 0:00:04]} 38. Rd2 {[%emt 0:00:04]} Nb5 {[%emt 0:01:19]} 39. Bxb5 {[%emt 0:01:16]} Rxb5 $11 {[%emt 0:00:01][%mdl 4096] Endgame KRB-KRN} 40. Rd4 {[%emt 0:00:15]} Rc5 {[%emt 0:00:33]} 41. Kd2 {[%emt 0:00:25]} Be6 {[%emt 0:00:11]} 42. Nc3 {[%emt 0:00:08]} f5 {[%emt 0:00:35]} (42... h4 $11 {should be considered.}) 43. Rd6 $14 {[%emt 0:00:26]} Kf6 {[%emt 0:00:52] White leaves nothing to chance now.} (43... Bf7 $14) 44. Ra6 $16 {[%emt 0:00:02]} Ke5 {[%emt 0:00:29]} 45. Rxa7 {[%emt 0:00:28] White is more active.} g4 {[%emt 0:00:14]} 46. Ne2 {[%emt 0:00:49]} Bd5 {[%emt 0:02:47]} 47. Ke3 {[%emt 0:00:31]} h4 $2 {[%emt 0:00:46]} (47... Rc8 {is tougher.} 48. Ra6 Bb7 49. Ra5+ Kf6) 48. f4+ $18 {[%emt 0:01:48]} Kd6 {[%emt 0:00:30]} 49. Ra6+ {[%emt 0:00:05]} Rc6 {[%emt 0:01:03] [#]} 50. Rxc6+ {[%emt 0:00:02]} Bxc6 {[%emt 0:00:03] KB-KN} 51. g3 {[%emt 0:00:04][%cal Bg2g3,Bg3h4,Bh4h5][%mdl 32]} Be4 {[%emt 0:00:34]} (51... hxg3 $142 52. Nxg3 Bd7) 52. gxh4 {[%emt 0:00:14]} Bxc2 {[%emt 0:00:16]} 53. h5 {[%emt 0:00:28] Threatening mate with h6.} Ke7 {[%emt 0:00:50]} 54. Kd4 {[%emt 0:00:06]} Ba4 {[%emt 0:00:31]} 55. Ng3 {[%emt 0:00:35]} Bd7 {[%emt 0:00:16]} 56. h6 {[%emt 0:00:48] White mates.} Kf7 {[%emt 0:00:38]} 57. Nh5 {[%emt 0:00:10]} Kg6 {[%emt 0:00:37]} 58. h7 {[%emt 0:00:05][%mdl 64] Decoy} Kxh7 {[%emt 0:00:21]} 59. Nf6+ {[%emt 0:00:01]} ({Worse is} 59. Kxc4 Kg6 60. Ng3 Be6+ 61. Kd4 Bxa2 $11) 59... Kg6 {[%emt 0:00:08]} 60. Nxd7 {[%emt 0:00:05] KN-K3P} Kh5 {[%emt 0:00:13]} 61. a4 {[%emt 0:00:40][%cal Ba2a4,Ba4a5,Ba5a6,Ba6a7][%mdl 32]} Kh4 {[%emt 0:00:05]} 62. a5 {[%emt 0:00:04]} Kh3 {[%emt 0:00:03]} 63. a6 {[%emt 0:00:05]} Kxh2 {[%emt 0:00:04]} 64. a7 {[%emt 0:00:06]} g3 {[%emt 0:00:04]} 65. Ne5 {[%emt 0:00:04]} g2 {[%emt 0:00:21]} 66. Nf3+ {[%emt 0:00:04] Weighted Error Value: White=0.03 (flawless) /Black=0.25 (precise)} (66. a8=B $2 {is the wrong capture.} g1=Q+ 67. Kxc4 Qc1+ 68. Kd5 Qh1+ {[%mdl 64] Skewer} 69. Ke6 Qxa8 $19) 1-0

[Event "20th Delhi GM Open 2023"]
[Site "New Delhi"]
[Date "2023.03.27"]
[Round "7.3"]
[White "Pantsulaia, Levan"]
[Black "Deepan Chakkravarthy J."]
[Result "1/2-1/2"]
[ECO "A26"]
[WhiteElo "2597"]
[BlackElo "2432"]
[Annotator "TA"]
[PlyCount "46"]
[EventDate "2023.03.23"]
[EventType "swiss"]
[EventCountry "IND"]
[SourceTitle "playchess.com"]
[Source "ChessBase"]
[SourceQuality "1"]
[TimeControl "5400+30"]

{[%evp 15,46,11,28,7,69,53,58,51,58,77,78,85,87,52,56,24,27,22,20,0,0,0,0,0,0,0,0,0,0,0,0,0,0]} 1. c4 {[%emt 0:00:59]} g6 {[%emt 0:01:59]} 2. g3 {[%emt 0:00:47]} Bg7 {[%emt 0:00:12]} 3. Bg2 {[%emt 0:00:05]} e5 {[%emt 0:00:58]} 4. Nc3 {[%emt 0:00:14]} Ne7 {[%emt 0:00:31]} 5. d3 {[%emt 0:01:18]} O-O {[%emt 0:00:16]} 6. h4 {[%emt 0:07:40][%cal Bh2h4,Bh4h5][%mdl 32]} h6 {[%emt 0:00:16]} 7. e4 {[%emt 0:01:40]} d6 {[%emt 0:01:29]} 8. Be3 {[%emt 0:07:52]} Nbc6 {[%emt 0:02:18]} 9. Qd2 {[%emt 0:06:12] A26: English Opening vs King's Indian with ...Nc6 and d3.} Kh7 {[%emt 0:05:05]} ({Black should play} 9... h5 $1 $11) 10. h5 {[%emt 0:01:03] White is more active.} g5 {[%emt 0:00:15]} 11. f4 {[%emt 0:00:47] White is slightly better.} gxf4 {[%emt 0:14:04]} 12. gxf4 {[%emt 0:01:16]} exf4 {[%emt 0:00:47]} 13. Bxf4 {[%emt 0:00:05]} a6 {[%emt 0:00:25] [#]} 14. Nge2 $146 {[%emt 0:03:23]} (14. Nf3 {is interesting.} b5 15. O-O-O Bg4 16. Rdg1) ({Predecessor:} 14. Bh3 Nd4 15. O-O-O b5 16. Nge2 b4 17. Nd5 Nxd5 18. cxd5 Nxe2+ 19. Qxe2 a5 20. d4 {1-0 Slavin,A (2397)-Dale,A (2122) London Classic op 4th 2012 (8)}) 14... Rg8 {[%emt 0:04:33][%cal Ob7b5]} 15. Bh3 {[%emt 0:15:34]} Bxh3 {[%emt 0:15:49]} 16. Rxh3 {[%emt 0:00:11]} Qd7 {[%emt 0:02:45] The position is equal.} 17. Rg3 {[%emt 0:04:56]} Bxc3 {[%emt 0:14:01]} 18. Qxc3 {[%emt 0:01:49]} Rxg3 {[%emt 0:03:39]} 19. Nxg3 {[%emt 0:00:25]} Qg4 {[%emt 0:01:05]} 20. Qf6 {[%emt 0:01:24][%csl LRf7,LRh6]} Qe6 $1 {[%emt 0:00:26]} 21. Qc3 {[%emt 0:05:22]} Qg4 {[%emt 0:00:40]} 22. Qf6 {[%emt 0:02:09][%csl LRf7,LRh6]} Qe6 $1 {[%emt 0:00:07]} 23. Qc3 {[%emt 0:00:02]} Qg4 {[%emt 0:00:07] Weighted Error Value: White=0.11 (very precise) /Black=0.06 (flawless)} 1/2-1/2